lending/lending_fUSD_20240507
["ID","MTS","AMOUNT","RATE_DAILY","PERIOD"]
[326555339,1715106641325,-150.0,0.00013237,2]
[326555341,1715106641335,-480.87,0.00013274,2]
[326555343,1715106641344,-688.05,0.00013425,2]
[326555345,1715106641354,-500.0,0.00013699,2]
[326555347,1715106641364,-174.8,0.00013912,2]
[326555349,1715106641374,-1500.0,0.00013987,2]
[326555351,1715106641384,-310.0,0.00014177,2]
[326555353,1715106641394,-480.87,0.00014933,2]
[326555355,1715106641404,-618.22068598,0.00015,2]
[326555357,1715106641414,-1741.56006249,0.00016,2]
[326555359,1715106641424,-480.87,0.00016592,2]
[326555361,1715106641434,-354.01857615,0.00016989,2]
[326555363,1715106641443,-288.0,0.00017197,2]
[326555365,1715106641453,-480.87,0.00018252,2]
[326555367,1715106641463,-1700.0,0.000188,6]
[326555369,1715106641473,-3400.0,0.000189,6]
[326555371,1715106641483,-281.57953583,0.00019,2]
[326555373,1715106641493,-519.0257551,0.00019075,2]
[326555375,1715106641503,-2500.0,0.00019077,2]
[326555377,1715106641512,-151.01,0.00019168,2]
[326555380,1715106641524,-25344.61108176,0.00019173,2]
[326555382,1715106641537,-1463.02178931,0.00019173,2]
[326555384,1715106641547,-3994.45228752,0.00019175,2]
[326555386,1715106641557,-500.0,0.00019178,2]
[326555388,1715106641567,-515.1169255,0.00019178,2]
[326555390,1715106641577,-500.0,0.00019178,2]
[326555392,1715106641588,-1537.35,0.00019178,2]
[326555394,1715106641598,-500.0,0.00019178,2]
[326555396,1715106641608,-789.79,0.00019178,2]
[326555398,1715106641618,-555.3,0.00019178,2]
[326555400,1715106641628,-811.79,0.00019178,2]
[326555402,1715106641638,-500.0,0.00019178,2]
[326555404,1715106641648,-500.0,0.00019178,2]
[326555406,1715106641658,-500.0,0.00019178,2]
[326555408,1715106641668,-500.0,0.00019178,2]
[326555410,1715106641678,-694.08,0.00019178,2]
[326555412,1715106641688,-744.17,0.00019178,2]
[326555414,1715106641698,-974.09,0.00019178,2]
[326555416,1715106641708,-155.0,0.00019178,2]
[326555418,1715106641719,-500.0,0.00019178,2]
[326555421,1715106641729,-500.0,0.00019178,2]
[326555423,1715106641738,-500.0,0.00019178,2]
[326555425,1715106641748,-537.89,0.00019178,2]
[326555427,1715106641759,-620.25,0.00019178,2]
[326555429,1715106641771,-500.0,0.00019178,2]
[326555431,1715106641781,-500.0,0.00019178,2]
[326555433,1715106641791,-500.0,0.00019178,2]
[326555435,1715106641800,-500.0,0.00019178,2]
[326555437,1715106641811,-350.37334862,0.00019178,2]
[326555439,1715106641825,-149.62665138,0.00019178,2]
[326555441,1715106641835,-500.0,0.00019178,2]
[326555443,1715106641845,-512.82,0.00019178,2]
[326555445,1715106641855,-712.92,0.00019178,2]
[326555447,1715106641871,-500.0,0.00019178,2]
[326555449,1715106641883,-626.498264,0.00019178,2]
[326555451,1715106641894,-327.33786315,0.00019178,2]
[326555454,1715106641907,-500.0,0.00019178,2]
[326555456,1715106641916,-665.98,0.00019178,2]
[326555458,1715106641928,-500.0,0.00019178,2]
[326555460,1715106641938,-500.0,0.00019178,2]
[326555462,1715106641948,-1021.88,0.00019178,2]
[326555464,1715106641959,-1345.43,0.00019178,2]
[326555466,1715106641968,-957.64,0.00019178,2]
[326555468,1715106641978,-715.57,0.00019178,2]
[326555470,1715106641987,-555.27,0.00019178,2]
[326555472,1715106641997,-500.0,0.00019178,2]
[326555474,1715106642006,-781.48,0.00019178,2]
[326555476,1715106642019,-500.0,0.00019178,2]
[326555478,1715106642028,-500.0,0.00019178,2]
[326555480,1715106642039,-681.48,0.00019178,2]
[326555482,1715106642049,-505.0,0.00019178,2]
[326555484,1715106642059,-569.07,0.00019178,2]
[326555486,1715106642069,-500.0,0.00019178,2]
[326555488,1715106642078,-500.0,0.00019178,2]
[326555490,1715106642088,-999.89,0.00019178,2]
[326555492,1715106642100,-698.35,0.00019178,2]
[326555494,1715106642110,-965.77,0.00019178,2]
[326555496,1715106642120,-739.24,0.00019178,2]
[326555498,1715106642130,-927.81,0.00019178,2]
[326555500,1715106642139,-911.62,0.00019178,2]
[326555502,1715106642149,-500.0,0.00019178,2]
[326555504,1715106642159,-907.93,0.00019178,2]
[326555506,1715106642168,-500.0,0.00019178,2]
[326555508,1715106642178,-500.0,0.00019178,2]
[326555510,1715106642187,-601.23,0.00019178,2]
[326555512,1715106642196,-500.0,0.00019178,2]
[326555514,1715106642206,-1638.2,0.00019178,2]
[326555516,1715106642215,-1073.57,0.00019178,2]
[326555518,1715106642225,-513.31,0.00019178,2]
[326555520,1715106642235,-641.14,0.00019178,2]
[326555522,1715106642244,-500.0,0.00019178,2]
[326555524,1715106642254,-500.0,0.00019178,2]
[326555526,1715106642263,-500.0,0.00019178,2]
[326555528,1715106642275,-615.54,0.00019178,2]
[326555530,1715106642284,-500.0,0.00019178,2]
[326555532,1715106642294,-500.0,0.00019178,2]
[326555534,1715106642303,-570.64,0.00019178,2]
[326555536,1715106642312,-1188.57,0.00019178,2]
[326555538,1715106642322,-500.0,0.00019178,2]
[326555540,1715106642331,-500.0,0.00019178,2]
[326555541,1715106642340,-500.0,0.00019178,2]
[326555542,1715106642350,-602.41,0.00019178,2]
[326555543,1715106642359,-500.0,0.00019178,2]
[326555544,1715106642369,-697.28,0.00019178,2]
[326555545,1715106642379,-1764.88,0.00019178,2]
[326555546,1715106642388,-500.0,0.00019178,2]
[326555547,1715106642398,-500.0,0.00019178,2]
[326555548,1715106642407,-1316.23,0.00019178,2]
[326555549,1715106642416,-898.97,0.00019178,2]
[326555550,1715106642427,-577.94,0.00019178,2]
[326555551,1715106642436,-1771.65,0.00019178,2]
[326555552,1715106642446,-543.03,0.00019178,2]
[326555553,1715106642455,-500.0,0.00019178,2]
[326555554,1715106642465,-500.0,0.00019178,2]
[326555555,1715106642474,-849.29,0.00019178,2]
[326555557,1715106642483,-500.0,0.00019178,2]
[326555559,1715106642493,-668.61,0.00019178,2]
[326555585,1715106642741,-500.0,0.00019178,2]
[326555586,1715106642751,-609.7,0.00019178,2]
[326555587,1715106642760,-500.0,0.00019178,2]
[326555588,1715106642773,-500.0,0.00019178,2]
[326555589,1715106642784,-500.0,0.00019178,2]
[326555590,1715106642794,-817.83,0.00019178,2]
[326555591,1715106642805,-539.52,0.00019178,2]
[326555592,1715106642815,-604.05,0.00019178,2]
[326555593,1715106642825,-500.0,0.00019178,2]
[326555594,1715106642835,-500.0,0.00019178,2]
[326555595,1715106642845,-500.0,0.00019178,2]
[326555596,1715106642856,-500.0,0.00019178,2]
[326555597,1715106642868,-500.0,0.00019178,2]
[326555598,1715106642879,-500.0,0.00019178,2]
[326555599,1715106642892,-852.43,0.00019178,2]
[326555600,1715106642902,-1065.02,0.00019178,2]
[326555601,1715106642912,-508.21,0.00019178,2]
[326555602,1715106642921,-682.31,0.00019178,2]
[326555603,1715106642931,-626.8,0.00019178,2]
[326555604,1715106642942,-500.0,0.00019178,2]
[326555605,1715106642952,-1018.28,0.00019178,2]
[326555606,1715106642962,-500.0,0.00019178,2]
[326555607,1715106642972,-641.87,0.00019178,2]
[326555608,1715106642982,-1514.99,0.00019178,2]
[326555609,1715106642992,-500.0,0.00019178,2]
[326555610,1715106643001,-500.0,0.00019178,2]
[326555611,1715106643012,-848.39,0.00019178,2]
[326555612,1715106643022,-914.52,0.00019178,2]
[326555613,1715106643032,-526.73977842,0.00019178,2]
[326555614,1715106643042,-500.0,0.00019178,2]
[326555615,1715106643051,-595.72,0.00019178,2]
[326555616,1715106643061,-1166.04,0.00019178,2]
[326555617,1715106643071,-8483.54,0.00019178,2]
[326555618,1715106643081,-500.0,0.00019178,2]
[326555619,1715106643091,-245.84295212,0.00019178,2]
[326555620,1715106643103,-500.0,0.00019178,2]
[326555621,1715106643112,-500.0,0.00019178,2]
[326555622,1715106643123,-500.0,0.00019178,2]
[326555623,1715106643133,-500.0,0.00019178,2]
[326555624,1715106643142,-500.0,0.00019178,2]
[326555625,1715106643152,-500.0,0.00019178,2]
[326555626,1715106643161,-2107.76,0.00019178,2]
[326555627,1715106643171,-595.46,0.00019178,2]
[326555628,1715106643180,-500.0,0.00019178,2]
[326555629,1715106643190,-633.79,0.00019178,2]
[326555630,1715106643200,-500.0,0.00019178,2]
[326555631,1715106643209,-608.26,0.00019178,2]
[326555632,1715106643219,-1550.73,0.00019178,2]
[326555633,1715106643229,-500.0,0.00019178,2]
[326555634,1715106643238,-500.0,0.00019178,2]
[326555635,1715106643248,-500.0,0.00019178,2]
[326555636,1715106643258,-500.0,0.00019178,2]
[326555637,1715106643269,-500.0,0.00019178,2]
[326555638,1715106643279,-568.76,0.00019178,2]
[326555639,1715106643288,-500.0,0.00019178,2]
[326555640,1715106643298,-500.0,0.00019178,2]
[326555641,1715106643308,-500.0,0.00019178,2]
[326555642,1715106643318,-1530.27,0.00019178,2]
[326555643,1715106643328,-500.0,0.00019178,2]
[326555644,1715106643338,-500.0,0.00019178,2]
[326555645,1715106643347,-620.4,0.00019178,2]
[326555646,1715106643356,-500.0,0.00019178,2]
[326555647,1715106643366,-500.0,0.00019178,2]
[326555648,1715106643376,-500.0,0.00019178,2]
[326555649,1715106643386,-781.1,0.00019178,2]
[326555650,1715106643395,-551.88,0.00019178,2]
[326555651,1715106643405,-500.0,0.00019178,2]
[326555652,1715106643415,-948.42,0.00019178,2]
[326555653,1715106643424,-500.0,0.00019178,2]
[326555654,1715106643434,-999.61,0.00019178,2]
[326555655,1715106643444,-800.43,0.00019178,2]
[326555656,1715106643454,-891.62,0.00019178,2]
[326555657,1715106643464,-500.0,0.00019178,2]
[326555658,1715106643474,-500.0,0.00019178,2]
[326555659,1715106643483,-500.0,0.00019178,2]
[326555660,1715106643493,-786.21,0.00019178,2]
[326555661,1715106643502,-500.0,0.00019178,2]
[326555662,1715106643512,-770.33,0.00019178,2]
[326555663,1715106643523,-500.0,0.00019178,2]
[326555664,1715106643533,-500.0,0.00019178,2]
[326555665,1715106643543,-500.0,0.00019178,2]
[326555666,1715106643553,-500.0,0.00019178,2]
[326555667,1715106643562,-500.0,0.00019178,2]
[326555668,1715106643572,-500.0,0.00019178,2]
[326555669,1715106643582,-909.92,0.00019178,2]
[326555670,1715106643591,-500.0,0.00019178,2]
[326555671,1715106643602,-1241.36,0.00019178,2]
[326555672,1715106643611,-500.0,0.00019178,2]
[326555673,1715106643621,-954.65,0.00019178,2]
[326555674,1715106643631,-500.0,0.00019178,2]
[326555675,1715106643640,-500.0,0.00019178,2]
[326555676,1715106643650,-500.0,0.00019178,2]
[326555677,1715106643659,-1359.41,0.00019178,2]
[326555678,1715106643669,-500.0,0.00019178,2]
[326555679,1715106643678,-1346.91,0.00019178,2]
[326555680,1715106643687,-1272.69,0.00019178,2]
[326555681,1715106643697,-606.59,0.00019178,2]
[326555682,1715106643707,-151.20068186,0.00019178,2]
[326555683,1715106643716,-587.73,0.00019178,2]
[326555684,1715106643726,-500.0,0.00019178,2]
[326555685,1715106643735,-500.0,0.00019178,2]
[326555686,1715106643747,-616.83,0.00019178,2]
[326555687,1715106643756,-500.0,0.00019178,2]
[326555688,1715106643766,-1794.19,0.00019178,2]
[326555689,1715106643777,-1254.22,0.00019178,2]
[326555690,1715106643787,-500.0,0.00019178,2]
[326555691,1715106643796,-1220.99,0.00019178,2]
[326555692,1715106643806,-292.94434183,0.00019178,2]
[326555693,1715106643826,-394.18780526,0.00019178,2]
[326555712,1715106644472,-113.89785291,0.00019178,2]
[326555713,1715106644482,-175.39477754,0.00019178,2]
[326555717,1715106647284,-661.21161418,0.00017259,2]
[326555719,1715106647293,-104.09438569,0.00017259,2]
[326555721,1715106647305,-429.55168101,0.00017259,2]
[326555724,1715106647315,-235.55959569,0.00017259,2]
[326555726,1715106647325,-155.0,0.00019177,2]
[326555729,1715106647334,-324.60522246,0.00019178,2]
[326555730,1715106647343,-500.0,0.00019178,2]
[326555732,1715106647352,-239.84638146,0.00019178,2]
[326555744,1715107836611,-407.60248368,0.00011175,2]
[326555747,1715107836621,-98.25251132,0.00011176,2]
[326555751,1715107836634,-438.53851233,0.00011176,2]
[326555754,1715107836644,-155.0,0.00011177,2]
[326555757,1715107836654,-155.0,0.00011177,2]
[326555759,1715107836663,-622.58613624,0.00011177,2]
[326555761,1715107836674,-155.0,0.00011177,2]
[326555763,1715107836683,-397.000051,0.00011178,2]
[326555765,1715107836694,-4365.70041972,0.00011233,2]
[326555767,1715107836707,-3140.34525209,0.00011233,2]
[326555769,1715107836718,-3085.52798697,0.00011234,2]
[326555772,1715107836729,-283.6855947,0.00011337,2]
[326555774,1715107836741,-16.3144053,0.00011337,2]
[326555776,1715107836751,-3420.48127889,0.00011528,2]
[326555778,1715107836764,-3391.0572534,0.00011528,2]
[326555780,1715107836776,-82.90446771,0.00011528,2]
[326555782,1715107836786,-296.07953229,0.00011732,2]
[326555785,1715107836799,-3451.51871787,0.00011732,2]
[326555787,1715107836808,-1935.53698765,0.000118,2]
[326555789,1715107836821,-1563.15931235,0.000118,2]
[326555791,1715107836831,-436.84068765,0.00012,2]
[326555793,1715107836844,-916.51052461,0.00012,2]
[326555795,1715107836854,-562.91520599,0.00012,2]
[326555798,1715107836867,-389.84087267,0.00012,2]
[326555800,1715107836878,-768.49392134,0.00012,2]
[326555802,1715107836888,-150.0,0.00012461,2]
[326555804,1715107836899,-499.99,0.00012461,2]
[326555806,1715107836909,-150.82,0.00012541,2]
[326555808,1715107836920,-150.82,0.00012577,2]
[326555810,1715107836930,-1400.0,0.000126,4]
[326555812,1715107836940,-150.82,0.00012613,2]
[326555814,1715107836951,-150.82,0.0001265,2]
[326555816,1715107836960,-150.82,0.00012686,2]
[326555818,1715107836970,-2188.27117866,0.000127,4]
[326555820,1715107836982,-711.72882134,0.000127,4]
[326555822,1715107836992,-117.80567962,0.00012722,2]
[326555824,1715107837003,-33.01432038,0.00012722,2]
[326555826,1715107837013,-150.82,0.00012759,2]
[326555828,1715107837023,-150.82,0.00012795,2]
[326555830,1715107837032,-4400.0,0.000128,4]
[326555832,1715107837043,-150.82,0.00012831,2]
[326555834,1715107837053,-150.82,0.00012867,2]
[326555836,1715107837062,-247.3314,0.000129,2]
[326555838,1715107837072,-1545.27457962,0.000129,2]
[326555841,1715107837084,-2418.39372038,0.000129,2]
[326555843,1715107837093,-191.95,0.000129,2]
[326555845,1715107837103,-3445.55880682,0.000129,4]
[326555847,1715107837116,-2454.44119318,0.000129,4]
[326555849,1715107837126,-150.82,0.00012904,2]
[326555851,1715107837136,-184.88345602,0.00012913,2]
[326555853,1715107837145,-484.42403814,0.00012935,2]
[326555855,1715107837155,-1107.45488034,0.00012935,2]
[326555857,1715107837165,-154.15827574,0.00012935,2]
[326555859,1715107837175,-150.82,0.0001294,2]
[326555861,1715107837185,-150.82,0.00012976,2]
[326555863,1715107837196,-151.01,0.0001299,2]
[326555865,1715107837207,-151.01,0.0001299,2]
[326555867,1715107837218,-151.01,0.0001299,2]
[326555869,1715107837230,-267.55488528,0.0001299,2]
[326555871,1715107837240,-234.42748105,0.00012998,2]
[326555873,1715107837249,-162.16193936,0.00012999,2]
[326555875,1715107837262,-21815.00385289,0.00013,2]
[326555878,1715107837274,-451.46127739,0.00013,2]
[326555880,1715107837291,-15186.000009,0.00013,2]
[326555882,1715107837305,-1188367.4578989,0.00013,2]
[326555885,1715107837322,-26302.73059819,0.00013,2]
[326555919,1715107839255,-179.58164916,0.00012913,2]
[326555920,1715107839264,-5501.11835085,0.00013,2]
[326555921,1715107839275,-40728.725492,0.00013,2]
[326555922,1715107839285,-3158.07444,0.00013,2]
[326555923,1715107839296,-215585.16472521,0.00013,2]
[326555924,1715107839307,-3682.35985511,0.00013,2]
[326555925,1715107839321,-5746.78626034,0.00013,2]
[326555926,1715107839332,-648.5229323,0.00013,2]
[326555927,1715107839343,-3035.49999998,0.00013,2]
[326555928,1715107839353,-11432.2072065,0.00013,2]
[326555929,1715107839364,-841.34747831,0.00013,2]
[326555930,1715107840843,-5475.7,0.00011771,2]
[326555932,1715107840853,-457362.71011583,0.00013,2]
[326555934,1715107840866,-2199.22889,0.00013,2]
[326555936,1715107840878,-795.2682055,0.00013,2]
[326555939,1715107840891,-1007.38297438,0.00013,2]
[326555943,1715107840904,-1076.24804272,0.00013,2]
[326555945,1715107840916,-303.84806969,0.00013,2]
[326556185,1715107843351,-3755.54613163,0.00011076,2]
[326556186,1715107843361,-122855.44484623,0.00013,2]
[326556187,1715107843374,-460772.66676769,0.00013,2]
[326556188,1715107843385,-5003.46707611,0.00013,2]
[326556189,1715107843397,-1008.816,0.00013,2]
[326556221,1715107845354,-168.67774364,0.00012913,2]
[326556224,1715107845364,-334.09667798,0.00013,2]
[326556227,1715107845376,-563.8784653,0.00013,2]
[326556230,1715107845387,-1267.82998508,0.00013,2]
[326556233,1715107845399,-31612.63999999,0.00013,2]
[326556236,1715107845412,-2741.3844735,0.00013,2]
[326556238,1715107845422,-150.82,0.00013013,2]
[326556239,1715107845431,-150.82,0.00013049,2]
[326556240,1715107845441,-150.82,0.00013085,2]
[326556241,1715107845451,-150.82,0.00013122,2]
[326556242,1715107845461,-150.82,0.00013158,2]
[326556243,1715107845471,-150.82,0.00013194,2]
[326556244,1715107845480,-250.0,0.00013535,2]
[326556245,1715107845490,-484.42403806,0.00013647,2]
[326556246,1715107845500,-500.0,0.00013699,2]
[326556247,1715107845510,-1107.45488027,0.00013841,2]
[326556248,1715107845520,-160.29,0.00014013,2]
[326556249,1715107845529,-484.42403806,0.00014359,2]
[326556250,1715107845539,-170.06471965,0.00014384,2]
[326556251,1715107845556,-1107.45488027,0.00014747,2]
[326556252,1715107845567,-599.05,0.00014913,2]
[326556253,1715107845578,-618.22068598,0.00015,2]
[326556254,1715107845588,-484.42403806,0.0001507,2]
[326556255,1715107845598,-167.27,0.00015361,2]
[326556256,1715107845609,-1107.45488027,0.00015653,2]
[326556257,1715107845619,-484.42403806,0.00015782,2]
[326556258,1715107845630,-1396.77,0.00016438,2]
[326556259,1715107845640,-484.42403806,0.00016494,2]
[326556260,1715107845650,-1163.88061342,0.000165,2]
[326556261,1715107845660,-1107.45488027,0.00016559,2]
[326556262,1715107845670,-1526.40652003,0.00017,2]
[326556263,1715107845680,-300.0,0.00017158,2]
[326556264,1715107845690,-484.42403806,0.00017206,2]
[326556265,1715107845700,-2361.97003356,0.00017258,2]
[326556266,1715107845710,-1273.0360969,0.00017259,2]
[326556267,1715107845720,-200.44893234,0.00017259,2]
[326556268,1715107845731,-1107.45488027,0.00017465,2]
[326556269,1715107845741,-160.29,0.00017516,2]
[326556270,1715107845752,-1935.85184428,0.0001788,2]
[326556271,1715107845762,-1935.85184428,0.0001788,2]
[326556272,1715107845773,-1935.85184428,0.0001788,2]
[326556273,1715107845783,-1935.85184428,0.0001788,2]
[326556274,1715107845793,-1935.85184428,0.0001788,2]
[326556275,1715107845803,-484.42403806,0.00017918,2]
[326556276,1715107845813,-277.99598476,0.00018217,2]
[326556277,1715107845825,-200.0,0.00018319,2]
[326556278,1715107845836,-200.10911415,0.00018319,2]
[326556279,1715107845846,-1107.45488027,0.0001837,2]
[326556280,1715107845856,-1935.85184428,0.00018471,2]
[326556281,1715107845866,-484.42403806,0.00018629,2]
[326556282,1715107845877,-300.0,0.00018712,2]
[326556283,1715107845887,-7400.0,0.000189,6]
[326556284,1715107845897,-523.05,0.00018904,2]
[326556285,1715107845907,-3301.59191067,0.00018977,2]
[326556286,1715107845918,-2955.67955936,0.00019,5]
[326556287,1715107845928,-169.00061119,0.00019078,2]
[326556288,1715107845938,-4839.9979,0.00019078,2]
[326556289,1715107845949,-151.01,0.00019165,2]
[326556290,1715107845958,-151.01,0.00019168,2]
[326556291,1715107845968,-151.01,0.00019168,2]
[326556292,1715107845978,-177.54622384,0.00019175,2]
[326556293,1715107845989,-202.23422368,0.00019175,2]
[326556294,1715107846000,-217.92471826,0.00019175,2]
[326556295,1715107846011,-155.0,0.00019175,2]
[326556296,1715107846021,-155.0,0.00019175,2]
[326556297,1715107846031,-1662.28093895,0.00019175,2]
[326556298,1715107846041,-324.18247948,0.00019175,2]
[326556299,1715107846051,-685.0391656,0.00019175,2]
[326556300,1715107846061,-3278.12915811,0.00019175,2]
[326556301,1715107846071,-406.05433481,0.00019175,2]
[326556302,1715107846081,-273.04159447,0.00019176,2]
[326556303,1715107846092,-1753.5384982,0.00019176,2]
[326556304,1715107846102,-193.38302969,0.00019176,2]
[326556305,1715107846112,-951.81707179,0.00019176,2]
[326556306,1715107846122,-1212.20342963,0.00019176,2]
[326556307,1715107846133,-256.88955999,0.00019176,2]
[326556308,1715107846143,-155.31745909,0.00019176,2]
[326556309,1715107846153,-643175.18495681,0.00019177,2]
[326556310,1715107846163,-500.0,0.00019178,2]
[326556311,1715107846173,-546920.02655659,0.00019178,2]
[326556312,1715107846183,-366.28363483,0.00019178,2]
[326556313,1715107846193,-399.81092108,0.00019178,2]
[326556314,1715107846203,-1042.02397427,0.00019178,2]
[326556315,1715107846213,-155.0,0.00019178,2]
[326556316,1715107846227,-167.74860337,0.00019178,2]
[326556317,1715107846239,-155.0,0.00019178,2]
[326556318,1715107846249,-298.53572696,0.00019178,2]
[326556319,1715107846259,-500.0,0.00019178,2]
[326556320,1715107846270,-37426.70421522,0.00019178,2]
[326556321,1715107846280,-1037.70360246,0.00019178,2]
[326556322,1715107846291,-500.0,0.00019178,2]
[326556323,1715107846301,-500.0,0.00019178,2]
[326556324,1715107846310,-500.0,0.00019178,2]
[326556325,1715107846322,-500.0,0.00019178,2]
[326556326,1715107846332,-705.15,0.00019178,2]
[326556327,1715107846342,-500.0,0.00019178,2]
[326556328,1715107846352,-500.0,0.00019178,2]
[326556329,1715107846362,-1025.3,0.00019178,2]
[326556330,1715107846372,-1554.31,0.00019178,2]
[326556331,1715107846383,-500.0,0.00019178,2]
[326556332,1715107846393,-1262.29,0.00019178,2]
[326556333,1715107846403,-1813.58,0.00019178,2]
[326556334,1715107846414,-500.0,0.00019178,2]
[326556335,1715107846424,-1661.27,0.00019178,2]
[326556336,1715107846434,-500.0,0.00019178,2]
[326556337,1715107846444,-1019.11,0.00019178,2]
[326556338,1715107846455,-500.0,0.00019178,2]
[326556339,1715107846464,-500.0,0.00019178,2]
[326556340,1715107846474,-500.0,0.00019178,2]
[326556341,1715107846484,-500.0,0.00019178,2]
[326556342,1715107846494,-500.0,0.00019178,2]
[326556343,1715107846504,-500.0,0.00019178,2]
[326556344,1715107846514,-351.99051051,0.00019178,2]
[326556345,1715107846523,-500.0,0.00019178,2]
[326556346,1715107846533,-500.0,0.00019178,2]
[326556347,1715107846543,-1313.97,0.00019178,2]
[326556348,1715107846553,-500.0,0.00019178,2]
[326556349,1715107846563,-500.0,0.00019178,2]
[326556350,1715107846572,-500.0,0.00019178,2]
[326556351,1715107846582,-522.31,0.00019178,2]
[326556352,1715107846592,-889.15,0.00019178,2]
[326556353,1715107846602,-217.43522133,0.00019178,2]
[326556354,1715107846612,-500.0,0.00019178,2]
[326556355,1715107846623,-500.0,0.00019178,2]
[326556356,1715107846633,-500.0,0.00019178,2]
[326556357,1715107846643,-500.0,0.00019178,2]
[326556358,1715107846654,-500.0,0.00019178,2]
[326556359,1715107846663,-500.0,0.00019178,2]
[326556360,1715107846673,-500.0,0.00019178,2]
[326556361,1715107846684,-500.0,0.00019178,2]
[326556362,1715107846694,-1569.94,0.00019178,2]
[326556363,1715107846704,-500.0,0.00019178,2]
[326556364,1715107846714,-518.46,0.00019178,2]
[326556365,1715107846724,-1216.33,0.00019178,2]
[326556366,1715107846734,-500.0,0.00019178,2]
[326556367,1715107846744,-828.09,0.00019178,2]
[326556368,1715107846754,-1691.34,0.00019178,2]
[326556369,1715107846764,-500.0,0.00019178,2]
[326556370,1715107846774,-500.0,0.00019178,2]
[326556371,1715107846784,-882.27,0.00019178,2]
[326556372,1715107846794,-507.41,0.00019178,2]
[326556373,1715107846804,-1697.84,0.00019178,2]
[326556374,1715107846815,-524.22,0.00019178,2]
[326556375,1715107846826,-1154.24,0.00019178,2]
[326556376,1715107846836,-500.0,0.00019178,2]
[326556377,1715107846847,-1376.13772376,0.00019178,2]
[326556378,1715107846857,-500.0,0.00019178,2]
[326556379,1715107846868,-500.0,0.00019178,2]
[326556380,1715107846878,-500.0,0.00019178,2]
[326556381,1715107846888,-155.0,0.00019178,2]
[326556382,1715107846898,-500.0,0.00019178,2]
[326556383,1715107846908,-500.0,0.00019178,2]
[326556384,1715107846918,-500.0,0.00019178,2]
[326556385,1715107846927,-500.0,0.00019178,2]
[326556386,1715107846938,-500.0,0.00019178,2]
[326556387,1715107846948,-500.0,0.00019178,2]
[326556388,1715107846959,-1020.65,0.00019178,2]
[326556389,1715107846969,-500.0,0.00019178,2]
[326556390,1715107846979,-588.63,0.00019178,2]
[326556391,1715107846989,-345.39930629,0.00019178,2]
[326556392,1715107846999,-500.0,0.00019178,2]
[326556393,1715107847010,-173.29628623,0.00019178,2]
[326556394,1715107847020,-1533.51,0.00019178,2]
[326556395,1715107847030,-500.0,0.00019178,2]
[326556396,1715107847041,-1451.87,0.00019178,2]
[326556397,1715107847051,-500.0,0.00019178,2]
[326556398,1715107847061,-1001.05,0.00019178,2]
[326556399,1715107847071,-500.0,0.00019178,2]
[326556400,1715107847082,-500.0,0.00019178,2]
[326556401,1715107847104,-500.0,0.00019178,2]
[326556402,1715107847115,-500.0,0.00019178,2]
[326556403,1715107847126,-500.0,0.00019178,2]
[326556404,1715107847136,-500.0,0.00019178,2]
[326556405,1715107847147,-500.0,0.00019178,2]
[326556406,1715107847157,-2019.94,0.00019178,2]